fUST/lending_fUST_20251012
["ID","MTS","AMOUNT","RATE_DAILY","PERIOD"]
[390955156,1760231455235,-1240.0,0.00025512,2]
[390955157,1760231455244,-2676.2,0.00025528,2]
[390955158,1760231455253,-2000.0,0.00025616,2]
[390955159,1760231455262,-2000.0,0.00025616,2]
[390955160,1760231455271,-1240.0,0.00025665,2]
[390955161,1760231455280,-1759.35645538,0.00025722,2]
[390955162,1760231455289,-587.0,0.00025751,2]
[390955163,1760231455300,-587.0,0.00025751,2]
[390955164,1760231455309,-666.66666667,0.00025781,16]
[390955165,1760231455318,-666.66666667,0.00025781,16]
[390955166,1760231455327,-1082.88519677,0.000258,2]
[390955167,1760231455336,-1342.87767558,0.000258,2]
[390955168,1760231455345,-473.66867045,0.000258,2]
[390955169,1760231455353,-1613.24933512,0.000258,2]
[390955170,1760231455362,-963.18179789,0.000258,2]
[390955171,1760231455371,-177.59461824,0.000258,2]
[390955172,1760231455380,-202.63705719,0.00025838,2]
[390955173,1760231455393,-2351.0,0.00025869,2]
[390955174,1760231455402,-666.66666667,0.00025929,18]
[390955175,1760231455410,-666.66666667,0.00025929,18]
[390955176,1760231455419,-666.66666667,0.00025929,18]
[390955177,1760231455429,-450.0,0.00025968,2]
[390955178,1760231455438,-2351.0,0.00025993,2]
[390955179,1760231455447,-1240.0,0.00025997,2]
[390955180,1760231455456,-640.45141808,0.00026,2]
[390955181,1760231455465,-1240.0,0.0002602,2]
[390955182,1760231455474,-13536.88,0.00026027,2]
[390955183,1760231455483,-179.56903432,0.00026037,2]
[390955184,1760231455492,-1240.0,0.00026053,2]
[390955185,1760231455500,-666.66666667,0.00026078,20]
[390955186,1760231455509,-666.66666667,0.00026078,20]
[390955187,1760231455518,-1082.88519677,0.000261,2]
[390955188,1760231455527,-1342.87767558,0.000261,2]
[390955189,1760231455535,-473.66867045,0.000261,2]
[390955190,1760231455545,-1613.24933512,0.000261,2]
[390955191,1760231455554,-963.18179789,0.000261,2]
[390955192,1760231455563,-177.59461824,0.000261,2]
[390955193,1760231455572,-2500.0,0.00026164,2]
[390955194,1760231455581,-505.68056906,0.00026164,2]
[390955195,1760231455590,-1082.88519677,0.000263,2]
[390955196,1760231455599,-3010.73,0.0002644,2]
[390955197,1760231455608,-750.0,0.00026516,2]
[390955198,1760231455616,-1082.88519677,0.000266,2]
[390955199,1760231455626,-687.31371696,0.000266,2]
[390955200,1760231455635,-3000.0,0.00026712,2]
[390955201,1760231455644,-197.0,0.0002678,16]
[390955202,1760231455653,-1082.88519677,0.000269,2]
[390955203,1760231455664,-200.0,0.00027,120]
[390955204,1760231455672,-1759.35645538,0.00027023,2]
[390955205,1760231455681,-242.93664726,0.00027043,2]
[390955206,1760231455690,-1082.88519677,0.000271,2]
[390955207,1760231455699,-1102.75,0.00027123,10]
[390955208,1760231455708,-1102.75,0.00027123,10]
[390955209,1760231455716,-1102.75,0.00027123,10]
[390955210,1760231455725,-1102.75,0.00027123,10]
[390955211,1760231455734,-1102.75,0.00027123,10]
[390955212,1760231455742,-1102.75,0.00027123,10]
[390955213,1760231455751,-1102.75,0.00027123,10]
[390955214,1760231455760,-1102.75,0.00027123,10]
[390955215,1760231455768,-1102.75,0.00027123,10]
[390955216,1760231455777,-1102.75,0.00027123,10]
[390955217,1760231455786,-1102.75,0.00027123,10]
[390955218,1760231455795,-1102.75,0.00027123,10]
[390955219,1760231455805,-1102.75,0.00027123,10]
[390955220,1760231455814,-1102.75,0.00027123,10]
[390955221,1760231455823,-1102.75,0.00027123,10]
[390955222,1760231455832,-1102.75,0.00027123,10]
[390955223,1760231455841,-1102.75,0.00027123,10]
[390955224,1760231455850,-1102.75,0.00027123,10]
[390955225,1760231455859,-1102.75,0.00027123,10]
[390955226,1760231455867,-1102.75,0.00027123,10]
[390955227,1760231455876,-1102.75,0.00027123,10]
[390955228,1760231455885,-1102.75,0.00027123,10]
[390955229,1760231455895,-1102.75,0.00027123,10]
[390955230,1760231455903,-1102.91538687,0.00027123,10]
[390955231,1760231455912,-864.0,0.00027135,30]
[390955232,1760231455921,-734.17601585,0.000272,2]
[390955233,1760231455932,-3500.0,0.0002726,2]
[390955234,1760231455941,-150.0,0.000273,2]
[390955235,1760231455950,-3345.25,0.00027352,2]
[390955236,1760231455959,-1000.0,0.00027397,30]
[390955237,1760231455968,-1000.0,0.00027397,30]
[390955238,1760231455977,-1000.0,0.00027397,30]
[390955239,1760231455986,-1000.0,0.00027397,30]
[390955240,1760231455995,-1000.0,0.00027397,30]
[390955241,1760231456004,-1135.99673508,0.00027397,30]
[390955242,1760231456012,-13536.88,0.00027397,4]
[390955243,1760231456021,-150.0,0.00027397,5]
[390955244,1760231456031,-3030.36,0.000274,2]
[390955245,1760231456040,-6952.48,0.000274,2]
[390955246,1760231456048,-1082.88519677,0.000274,2]
[390955247,1760231456058,-151.87,0.00027513,15]
[390955248,1760231456067,-177.18,0.00027559,15]
[390955249,1760231456075,-151.88,0.00027608,15]
[390955250,1760231456084,-151.87,0.00027613,15]
[390955251,1760231456093,-177.18,0.00027659,15]
[390955252,1760231456102,-151.88,0.00027708,15]
[390955253,1760231456110,-151.87,0.00027713,15]
[390955254,1760231456119,-232.269441,0.00027739,60]
[390955255,1760231456127,-177.185,0.00027759,15]
[390955256,1760231456136,-781.03831473,0.000278,2]
[390955257,1760231456145,-151.88,0.00027808,15]
[390955258,1760231456155,-4000.0,0.00027808,5]
[390955259,1760231456164,-151.87,0.00027813,15]
[390955260,1760231456173,-151.88,0.00027908,15]
[390955261,1760231456185,-151.87,0.00027913,15]
[390955262,1760231456194,-250.0,0.00027945,5]
[390955263,1760231456204,-823.0,0.00027988,2]
[390955264,1760231456213,-274.0,0.00027988,2]
[390955265,1760231456222,-150.5,0.00028,2]
[390955266,1760231456232,-320856.06203566,0.00028,7]
[390955267,1760231456374,-929143.93796434,0.00028,7]
[390955268,1760231456385,-151.89098415,0.00028008,15]
[390955269,1760231456396,-151.87,0.00028013,15]
[390955270,1760231456406,-151.87,0.00028113,15]
[390955271,1760231456415,-3292.0,0.00028114,2]
[390955272,1760231456424,-242.66491503,0.00028168,2]
[390955273,1760231456435,-151.87,0.00028213,15]
[390955274,1760231456445,-151.87,0.00028313,15]
[390955275,1760231456455,-2513.85770469,0.00028356,5]
[390955276,1760231456467,-3292.0,0.00028385,2]
[390955277,1760231456476,-1435.378824,0.00028392,2]
[390955278,1760231456485,-827.90061361,0.000284,2]
[390955279,1760231456495,-151.87,0.00028413,15]
[390955280,1760231456504,-350.0,0.00028493,5]
[390955281,1760231456514,-1435.378824,0.00028546,2]
[390955282,1760231456523,-1000.0,0.00028728,5]
[390955283,1760231456532,-13536.88,0.00028767,6]
[390955284,1760231456542,-227.805,0.00028883,2]
[390955285,1760231456551,-500.0,0.00028998,11]
[390955286,1760231456560,-500.0,0.00028999,11]
[390955287,1760231456570,-874.7629125,0.00029,2]
[390955288,1760231456579,-1435.378824,0.00029031,2]
[390955289,1760231456588,-470.11389129,0.00029041,5]
[390955290,1760231456597,-159.6684326,0.00029068,30]
[390955291,1760231456606,-1435.378824,0.00029123,2]
[390955292,1760231456615,-980.0,0.00029286,2]
[390955293,1760231456624,-2159.0,0.00029286,2]
[390955294,1760231456633,-630.0,0.00029286,2]
[390955295,1760231456643,-4196.0,0.00029287,2]
[390955296,1760231456652,-411.0,0.00029288,2]
[390955297,1760231456661,-3030.36,0.000293,2]
[390955298,1760231456670,-6952.48,0.000293,2]
[390955299,1760231456681,-1779.18578896,0.00029436,2]
[390955300,1760231456690,-1435.378824,0.00029532,2]
[390955301,1760231456701,-189.7226975,0.00029534,30]
[390955302,1760231456710,-189.7226975,0.00029534,30]
[390955303,1760231456720,-1176.1375856,0.00029534,30]
[390955304,1760231456728,-921.62521138,0.000296,2]
[390955305,1760231456738,-242.93664726,0.00029714,2]
[390955306,1760231456748,-250.0,0.00029822,2]
[390955307,1760231456757,-150.0,0.00029837,2]
[390955308,1760231456766,-150.0,0.00029837,2]
[390955309,1760231456775,-1435.378824,0.00029844,2]
[390955310,1760231456784,-1000.0,0.00029849,30]
[390955311,1760231456793,-1435.378827,0.00029902,2]
[390955312,1760231456803,-158.93055,0.0002995,2]
[390955313,1760231456811,-1000.0,0.0003,4]
[390955314,1760231456821,-189.5,0.00030136,120]
[390955315,1760231456830,-13536.88,0.00030136,8]
[390955316,1760231456840,-454.3182954,0.00030147,24]
[390955317,1760231456849,-200.0,0.0003017,120]
[390955318,1760231456858,-968.48751026,0.000302,2]
[390955319,1760231456867,-10000.0,0.00030253,2]
[390955320,1760231456876,-7290.0,0.00030253,2]
[390955321,1760231456886,-249.6,0.00030253,60]
[390955322,1760231456895,-799.99999997,0.00030271,2]
[390955323,1760231456904,-189.5,0.00030273,120]
[390955324,1760231456913,-40635.44973756,0.00030299,2]
[390955325,1760231456922,-150.53534174,0.00030299,2]
[390955326,1760231456932,-258.87111469,0.00030299,2]
[390955327,1760231456941,-176.51046614,0.00030299,7]
[390955328,1760231456950,-3770.52951071,0.00030299,2]
[390955329,1760231456959,-158.0,0.00030299,10]
[390955330,1760231456968,-8168.08318115,0.00030299,2]
[390955331,1760231456977,-30000.0,0.00030299,30]
[390955332,1760231456986,-150.0,0.00030299,2]
[390955333,1760231456995,-205079.68730109,0.00030299,20]
[390955334,1760231457004,-250.0,0.00030299,10]
[390955335,1760231457014,-250.0,0.00030299,10]
[390955336,1760231457023,-250.0,0.00030299,10]
[390955337,1760231457031,-497.912122,0.00030299,10]
[390955338,1760231457041,-298.08050243,0.000303,30]
[390955339,1760231457050,-160.0,0.00030308,5]
[390955340,1760231457059,-198.805713,0.00030332,30]
[390955341,1760231457068,-200.1955391,0.00030332,30]
[390955342,1760231457077,-500.0,0.00030332,30]
[390955343,1760231457087,-151.0,0.00030332,30]
[390955344,1760231457096,-151.0,0.00030332,30]
[390955345,1760231457105,-162.0,0.00030347,7]
[390955346,1760231457114,-162.0,0.00030347,7]
[390955347,1760231457123,-162.0,0.00030347,7]
[390955348,1760231457132,-151.63772695,0.00030347,7]
[390955349,1760231457142,-165.0,0.00030347,7]
[390955350,1760231457151,-165.0,0.00030347,7]
[390955351,1760231457159,-166.0,0.00030347,7]
[390955352,1760231457169,-165.0,0.00030347,7]
[390955353,1760231457179,-166.0,0.00030347,7]
[390955354,1760231457189,-165.0,0.00030347,7]
[390955355,1760231457198,-166.0,0.00030347,7]
[390955356,1760231457207,-165.0,0.00030347,7]
[390955357,1760231457219,-165.74684479,0.00030347,7]
[390955358,1760231457228,-169.74464474,0.00030347,7]
[390955359,1760231457237,-157.0,0.00030347,7]
[390955360,1760231457246,-155.0,0.00030347,7]
[390955361,1760231457255,-166.0,0.00030347,7]
[390955362,1760231457264,-166.0,0.00030347,7]
[390955363,1760231457273,-166.0,0.00030347,7]
[390955364,1760231457282,-166.0,0.00030347,7]
[390955365,1760231457290,-329.0,0.00030347,7]
[390955366,1760231457300,-329.0,0.00030347,7]
[390955367,1760231457309,-329.0,0.00030347,7]
[390955368,1760231457323,-329.0,0.00030347,7]
[390955369,1760231457332,-176.51579718,0.00030347,7]
[390955370,1760231457342,-205.43043741,0.00030347,7]
[390955371,1760231457350,-44017.93620562,0.0003035,2]
[390955372,1760231457359,-325.7514914,0.00030356,30]
[390955373,1760231457368,-153.0,0.00030356,30]
[390955374,1760231457378,-162.8757457,0.00030356,30]
[390955375,1760231457390,-153.0,0.00030356,30]
[390955376,1760231457399,-189.7226975,0.00030356,30]
[390955377,1760231457408,-500.0,0.00030387,30]
[390955378,1760231457419,-198.87405269,0.00030387,30]
[390955379,1760231457428,-189.5,0.0003041,120]
[390955380,1760231457437,-1152.0,0.0003042,2]
[390955381,1760231457447,-500.0,0.00030442,30]
[390955382,1760231457456,-500.0,0.00030496,30]
[390955383,1760231457466,-391.9198272,0.00030529,30]
[390955384,1760231457475,-391.9198272,0.00030529,30]
[390955385,1760231457485,-189.5,0.00030547,120]
[390955386,1760231457494,-500.0,0.00030551,30]
[390955387,1760231457503,-1743.0,0.00030553,2]
[390955388,1760231457512,-391.9198272,0.00030596,30]
[390955389,1760231457521,-391.9198272,0.00030596,30]
[390955390,1760231457531,-500.0,0.00030606,30]
[390955391,1760231457540,-500.0,0.00030661,30]
[390955392,1760231457549,-189.5,0.00030684,120]
[390955393,1760231457559,-609.35,0.00030684,14]
[390955394,1760231457568,-500.0,0.00030716,30]
[390955395,1760231457577,-500.0,0.0003077,30]
[390955396,1760231457586,-1015.34980915,0.000308,2]
[390955397,1760231457595,-189.5,0.00030821,120]
[390955398,1760231457605,-158.93055,0.00030894,10]
[390955399,1760231457614,-189.5,0.00030958,120]
[390955400,1760231457624,-303.34271639,0.0003099,2]
[390955401,1760231457634,-4609.0,0.00030996,2]
[390955402,1760231457643,-500.0,0.00031,120]
[390955403,1760231457652,-189.5,0.00031095,120]
[390955404,1760231457661,-3030.36,0.000311,2]
[390955405,1760231457671,-6952.48,0.000311,2]
[390955406,1760231457680,-153.679362,0.000311,30]
[390955407,1760231457807,-153.679362,0.000311,30]
[390955408,1760231457817,-153.679362,0.000311,30]
[390955409,1760231457827,-151.0,0.000311,30]
[390955410,1760231457835,-153.679362,0.000311,30]
[390955411,1760231457845,-151.0,0.000311,30]
[390955412,1760231457855,-151.0,0.000311,30]
[390955413,1760231457864,-151.0,0.000311,30]
[390955414,1760231457874,-151.0,0.000311,30]
[390955415,1760231457883,-499.328364,0.000311,30]
[390955416,1760231457893,-499.328364,0.000311,30]
[390955417,1760231457902,-151.0,0.000311,30]
[390955418,1760231457911,-499.328364,0.000311,30]
[390955419,1760231457921,-151.0,0.000311,30]
[390955420,1760231457931,-499.328364,0.000311,30]
[390955421,1760231457940,-151.0,0.000311,30]
[390955422,1760231457949,-151.0,0.000311,30]
[390955423,1760231457959,-152.181283,0.000311,30]
[390955424,1760231457968,-151.0,0.000311,30]
[390955425,1760231457978,-151.0,0.000311,30]
[390955426,1760231457988,-328.520907,0.000311,30]
[390955427,1760231457997,-151.0,0.000311,30]
[390955428,1760231458006,-328.520907,0.000311,30]
[390955429,1760231458015,-328.520907,0.000311,30]
[390955430,1760231458024,-328.520907,0.000311,30]
[390955431,1760231458033,-151.0,0.000311,30]
[390955432,1760231458042,-151.0,0.000311,30]
[390955433,1760231458051,-151.0,0.000311,30]
[390955434,1760231458060,-151.0,0.000311,30]
[390955435,1760231458069,-151.0,0.000311,30]
[390955436,1760231458079,-151.0,0.000311,30]
[390955437,1760231458088,-30000.0,0.0003112,2]
[390955438,1760231458097,-151.0,0.0003112,30]
[390955439,1760231458106,-151.0,0.0003112,30]
[390955440,1760231458116,-151.0,0.0003112,30]
[390955441,1760231458128,-151.0,0.0003112,30]
[390955442,1760231458140,-151.0,0.0003112,30]
[390955443,1760231458150,-163.551811,0.0003112,30]
[390955444,1760231458159,-151.0,0.0003112,30]
[390955445,1760231458168,-151.0,0.0003112,30]
[390955446,1760231458178,-151.0,0.0003112,30]
[390955447,1760231458187,-199.759602,0.0003112,30]
[390955448,1760231458196,-199.759602,0.0003112,30]
[390955449,1760231458206,-199.759602,0.0003112,30]
[390955450,1760231458215,-151.0,0.0003112,30]
[390955451,1760231458225,-199.759602,0.0003112,30]
[390955452,1760231458234,-151.0,0.0003112,30]
[390955453,1760231458243,-151.0,0.0003112,30]
[390955454,1760231458252,-179.678964,0.0003112,30]
[390955455,1760231458261,-151.0,0.0003112,30]
[390955456,1760231458270,-151.0,0.0003112,30]
[390955457,1760231458279,-151.0,0.0003112,30]
[390955458,1760231458288,-151.0,0.0003112,30]
[390955459,1760231458297,-151.0,0.0003112,30]
[390955460,1760231458305,-151.0,0.0003112,30]
[390955461,1760231458315,-151.0,0.0003112,30]
[390955462,1760231458323,-151.0,0.0003112,30]
[390955463,1760231458333,-152.608473,0.0003112,30]
[390955464,1760231458342,-152.608473,0.0003112,30]
[390955465,1760231458351,-152.608473,0.0003112,30]
[390955466,1760231458360,-152.608473,0.0003112,30]
[390955467,1760231458370,-358.395183,0.0003112,30]
[390955468,1760231458380,-358.395183,0.0003112,30]
[390955469,1760231458393,-358.395183,0.0003112,30]
[390955470,1760231458403,-358.395183,0.0003112,30]
[390955471,1760231458412,-232.269441,0.00031164,60]
[390955472,1760231458422,-189.5,0.00031232,120]
[390955473,1760231458432,-609.35,0.00031232,15]
[390955474,1760231458441,-189.5,0.00031369,120]
[390955475,1760231458450,-200.0,0.00031372,120]
[390955476,1760231458461,-1814.499048,0.00031383,2]
[390955477,1760231458471,-2000.0,0.000314,5]
[390955478,1760231458480,-250.0,0.000314,10]
[390955479,1760231458489,-1062.21210803,0.000314,2]
[390955480,1760231458498,-99429.1473,0.00031444,2]
[390955481,1760231458508,-151.0,0.00031444,30]
[390955482,1760231458517,-151.0,0.00031444,30]
[390955483,1760231458526,-151.0,0.00031444,30]
[390955484,1760231458535,-151.0,0.00031444,30]
[390955485,1760231458545,-151.0,0.00031444,30]
[390955486,1760231458554,-151.0,0.00031444,30]
[390955487,1760231458563,-151.0,0.00031444,30]
[390955488,1760231458572,-151.0,0.00031444,30]
[390955489,1760231458582,-151.0,0.00031444,30]
[390955490,1760231458593,-151.0,0.00031444,30]
[390955491,1760231458602,-151.0,0.00031444,30]
[390955492,1760231458611,-151.0,0.00031444,30]
[390955493,1760231458621,-578.982169,0.00031444,30]
[390955494,1760231458630,-578.982169,0.00031444,30]
[390955495,1760231458639,-205.514409,0.00031444,30]
[390955496,1760231458648,-578.982169,0.00031444,30]
[390955497,1760231458658,-205.514409,0.00031444,30]
[390955498,1760231458667,-578.982169,0.00031444,30]
[390955499,1760231458676,-205.514409,0.00031444,30]
[390955500,1760231458686,-205.514409,0.00031444,30]
[390955501,1760231458695,-151.0,0.00031444,30]
[390955502,1760231458704,-151.0,0.00031444,30]
[390955503,1760231458713,-151.0,0.00031444,30]
[390955504,1760231458722,-151.0,0.00031444,30]
[390955505,1760231458731,-500.0,0.000315,120]
[390955506,1760231458740,-250.0,0.000315,10]
[390955507,1760231458748,-189.5,0.00031506,120]
[390955508,1760231458757,-151.0,0.00031506,30]
[390955509,1760231458766,-547.335366,0.00031506,30]
[390955510,1760231458775,-547.335366,0.00031506,30]
[390955511,1760231458784,-547.335366,0.00031506,30]
[390955512,1760231458793,-547.335366,0.00031506,30]
[390955513,1760231458803,-151.0,0.00031506,30]
[390955514,1760231458812,-151.0,0.00031506,30]
[390955515,1760231458822,-151.0,0.00031506,30]
[390955516,1760231458831,-151.0,0.00031506,30]
[390955517,1760231458840,-183.222216,0.00031506,30]
[390955518,1760231458851,-183.222216,0.00031506,30]
[390955519,1760231458861,-183.222216,0.00031506,30]
[390955520,1760231458869,-183.222216,0.00031506,30]
[390955521,1760231458878,-13536.88,0.00031506,10]
[390955522,1760231458887,-250.0,0.000316,10]
[390955523,1760231458896,-189.5,0.00031643,120]
[390955524,1760231458905,-250.0,0.000317,10]
[390955525,1760231458924,-1100.0,0.00031712,7]
[390955526,1760231458934,-189.5,0.0003178,120]
[390955527,1760231458944,-609.35,0.0003178,16]
[390955528,1760231458953,-250.0,0.000318,10]
[390955529,1760231458967,-200.0,0.00031812,120]
[390955530,1760231458976,-250.0,0.000319,10]
[390955531,1760231458986,-189.5,0.00031917,120]
[390955532,1760231458995,-500.0,0.00032,120]
[390955533,1760231459004,-298.08050243,0.00032,10]
[390955534,1760231459014,-1109.07440692,0.00032,2]
[390955535,1760231459025,-189.5,0.00032054,120]
[390955536,1760231459035,-310.63948797,0.00032143,5]
[390955537,1760231459045,-189.5,0.00032191,120]
[390955538,1760231459054,-980.0,0.00032286,2]
[390955539,1760231459064,-2159.0,0.00032286,2]
[390955540,1760231459073,-630.0,0.00032286,2]
[390955541,1760231459083,-411.0,0.00032288,2]
[390955542,1760231459093,-150.0,0.00032303,2]
[390955543,1760231459102,-189.5,0.00032328,120]
[390955544,1760231459112,-609.35,0.00032328,17]
[390955545,1760231459123,-242.93664726,0.00032386,2]
[390955546,1760231459132,-391.9198272,0.0003244,30]
[390955547,1760231459143,-410.4356376,0.00032451,30]
[390955548,1760231459153,-391.9198272,0.00032451,30]
[390955549,1760231459163,-391.9198272,0.00032453,30]
[390955550,1760231459173,-189.5,0.00032465,120]
[390955551,1760231459183,-154.809388,0.00032475,2]
[390955552,1760231459194,-158.93055,0.00032475,2]
[390955553,1760231459203,-500.0,0.000325,120]
[390955554,1760231459213,-1100.0,0.00032534,7]
[390955555,1760231459223,-3030.36,0.000326,2]
[390955556,1760231459232,-6952.48,0.000326,2]
[390955557,1760231459242,-1155.9367058,0.000326,2]
[390955558,1760231459251,-189.5,0.00032602,120]
[390955559,1760231459260,-189.5,0.00032739,120]
[390955560,1760231459269,-154.809388,0.00032779,10]
[390955561,1760231459278,-158.93055,0.00032779,10]
[390955562,1760231459287,-1000.0,0.00032834,30]
[390955563,1760231459297,-244.0,0.00032834,30]
[390955564,1760231459306,-150.0,0.00032837,2]
[390955565,1760231459315,-189.5,0.00032876,120]
[390955566,1760231459324,-609.35,0.00032876,18]
[390955567,1760231459333,-13536.88,0.00032876,120]
[390955568,1760231459343,-161.13866728,0.00032877,2]
[390955569,1760231459352,-297.8851395,0.00032988,30]
[390955570,1760231459361,-318.3383427,0.00032988,30]
[390955571,1760231459371,-379.445395,0.00032988,30]
[390955572,1760231459383,-153.0,0.00032988,30]
[390955573,1760231459392,-588.4106815,0.00032988,30]
[390955574,1760231459401,-189.7226975,0.00032999,30]
[390955575,1760231459410,-595.770279,0.00032999,30]
[390955576,1760231459419,-162.8757457,0.00032999,30]
[390955577,1760231459429,-588.4106815,0.00032999,30]
[390955578,1760231459438,-162.8757457,0.00032999,30]
[390955579,1760231459447,-189.7226975,0.00032999,30]
[390955580,1760231459457,-297.8851395,0.00032999,30]
[390955581,1760231459467,-588.4106815,0.00032999,30]
[390955582,1760231459476,-500.0,0.00033,120]
[390955583,1760231459486,-298.08050243,0.00033,120]
[390955584,1760231459494,-189.5,0.00033013,120]
[390955585,1760231459503,-1613.0,0.00033063,2]
[390955586,1760231459512,-189.5,0.0003315,120]
[390955587,1760231459522,-991.508496,0.00033165,2]
[390955588,1760231459531,-1202.79900468,0.000332,2]
[390955589,1760231459540,-189.60822486,0.00033287,120]
[390955590,1760231459549,-1100.0,0.00033356,7]
[390955591,1760231459558,-609.35,0.00033424,19]
[390955592,1760231459568,-873486.3798,0.00033444,2]
[390955593,1760231459577,-151.0,0.00033444,30]
[390955594,1760231459587,-151.0,0.00033444,15]
[390955595,1760231459596,-151.0,0.00033444,30]
[390955596,1760231459605,-151.0,0.00033444,30]
[390955597,1760231459614,-175.639457,0.00033444,30]
[390955598,1760231459623,-175.639457,0.00033444,30]
[390955599,1760231459633,-175.639457,0.00033444,30]
[390955600,1760231459642,-175.639457,0.00033444,30]
[390955601,1760231459651,-151.0,0.00033444,30]
[390955602,1760231459660,-151.0,0.00033444,30]
[390955603,1760231459669,-151.0,0.00033444,30]
[390955604,1760231459678,-151.0,0.00033444,30]
[390955605,1760231459687,-151.0,0.00033444,30]
[390955606,1760231459696,-151.0,0.00033444,30]
[390955607,1760231459705,-151.0,0.00033444,30]
[390955608,1760231459714,-151.0,0.00033444,2]
[390955609,1760231459723,-151.0,0.00033444,30]
[390955610,1760231459733,-151.0,0.00033444,30]
[390955611,1760231459742,-151.0,0.00033444,30]
[390955612,1760231459751,-151.0,0.00033444,30]
[390955613,1760231459760,-547.335366,0.00033444,30]
[390955614,1760231459769,-547.335366,0.00033444,30]
[390955615,1760231459778,-547.335366,0.00033444,30]
[390955616,1760231459787,-547.335366,0.00033444,30]
[390955617,1760231459796,-151.0,0.00033444,30]
[390955618,1760231459805,-151.0,0.00033444,30]
[390955619,1760231459814,-151.0,0.00033444,30]
[390955620,1760231459823,-188.67864,0.00033444,30]
[390955621,1760231459832,-151.0,0.00033444,30]
[390955622,1760231459842,-183.222216,0.00033444,30]
[390955623,1760231459851,-151.0,0.00033444,30]
[390955624,1760231459859,-183.222216,0.00033444,30]
[390955625,1760231459869,-151.0,0.00033444,30]
[390955626,1760231459878,-151.0,0.00033444,30]
[390955627,1760231459887,-183.222216,0.00033444,30]
[390955628,1760231459896,-151.0,0.00033444,30]
[390955629,1760231459906,-183.222216,0.00033444,30]
[390955630,1760231459915,-151.0,0.00033444,30]
[390955631,1760231459924,-154.507525,0.00033444,30]
[390955632,1760231459933,-151.0,0.00033444,30]
[390955633,1760231459942,-246.75131,0.00033444,30]
[390955634,1760231459952,-151.0,0.00033444,30]
[390955635,1760231459961,-578.982169,0.00033444,30]
[390955636,1760231459970,-578.982169,0.00033444,30]
[390955637,1760231459980,-205.514409,0.00033444,30]
[390955638,1760231459989,-578.982169,0.00033444,30]
[390955639,1760231459998,-205.514409,0.00033444,30]
[390955640,1760231460008,-578.982169,0.00033444,30]
[390955641,1760231460017,-205.514409,0.00033444,30]
[390955642,1760231460026,-205.514409,0.00033444,30]
[390955643,1760231460036,-151.0,0.00033444,30]
[390955644,1760231460045,-151.0,0.00033444,30]
[390955645,1760231460054,-151.0,0.00033444,30]
[390955646,1760231460063,-151.0,0.00033444,30]
[390955647,1760231460072,-151.0,0.00033444,30]
[390955648,1760231460082,-151.0,0.00033444,30]
[390955649,1760231460091,-201.0,0.00033444,30]
[390955650,1760231460100,-250.964338,0.00033444,30]
[390955651,1760231460109,-151.0,0.00033444,30]
[390955652,1760231460118,-151.0,0.00033444,30]
[390955653,1760231460127,-151.0,0.00033444,30]
[390955654,1760231460137,-151.0,0.00033444,30]
[390955655,1760231460146,-199.759602,0.00033444,30]